bitfinex/quotes_ETHUSD_20250331
["timestamp","ask_amount","ask_price","bid_price","bid_amount"]
[1743450721550,5.07603738,1827.4,1827.3,0.035]
[1743450722050,5.07603738,1827.6,1827.3,0.035]
[1743450723261,0.42115484,1827.8,1827.3,0.035]
[1743450723443,5.07603738,1827.7,1827.3,0.035]
[1743450723623,5.07603738,1827.5,1827.3,0.035]
[1743450723824,5.92373738,1828.0,1827.4,0.8432]
[1743450724019,6.51611112,1828.0,1827.4,0.8432]
[1743450724362,5.47177,1827.6,1827.3,0.035]
[1743450724679,10.54722738,1827.8,1827.3,5.50738]
[1743450724974,10.54722738,1827.8,1827.3,0.035]
[1743450724975,5.07603738,1827.8,1827.3,0.035]
[1743450725192,10.54711738,1827.8,1827.3,0.035]
[1743450725482,5.47209,1827.5,1827.3,0.035]
[1743450725683,5.47225,1827.4,1827.3,0.035]
[1743450726630,10.54828738,1827.4,1827.3,0.21925129]
[1743450727034,10.54828738,1827.4,1827.3,0.035]
[1743450727229,10.54828738,1827.4,1827.3,0.21925129]
[1743450727856,5.47225,1827.4,1827.3,0.21925129]
[1743450728547,12.0572963,1827.4,1827.3,0.21925129]
[1743450728781,12.0572963,1827.4,1827.3,0.035]
[1743450729913,6.26993,1827.6,1827.3,0.035]
[1743450730112,5.47173,1827.6,1827.3,0.035]
[1743450730401,10.54740738,1827.7,1827.4,0.18996162]
[1743450730569,5.47179,1827.6,1827.4,0.18996162]
[1743450730758,5.47179,1827.6,1827.3,0.035]
[1743450730961,5.47179,1827.6,1827.5,0.19146019]
[1743450731163,5.47061,1828.0,1827.5,0.8351]
[1743450731488,5.47091,1827.9,1827.5,1.02656019]
[1743450731865,5.46996,1828.2,1827.5,1.02656019]
[1743450732061,5.46996,1828.2,1827.6,11.32747]
[1743450732261,10.54560738,1828.3,1827.7,6.29942]
[1743450732494,10.54560738,1828.3,1827.7,11.95993275]
[1743450732682,10.54560738,1828.3,1827.7,1.01754275]
[1743450733012,5.75250425,1828.9,1827.9,0.8282]
[1743450733013,6.30892,1828.8,1827.9,0.8282]
[1743450733156,10.54542738,1828.4,1827.9,0.8282]
[1743450733355,5.07603738,1828.8,1828.0,6.04768819]
[1743450733603,10.54401738,1828.9,1828.3,5.4695]
[1743450733807,10.54401738,1828.9,1828.2,5.46962]
[1743450733808,5.46813,1828.8,1828.2,5.46962]
[1743450733967,5.46813,1828.8,1828.4,0.1685185]
[1743450734478,5.46866,1828.6,1828.1,0.8529]
[1743450734813,5.46914,1828.5,1828.1,0.8529]
[1743450735504,5.46888,1828.6,1828.1,0.8529]
[1743450735744,10.93832,1828.5,1828.1,0.8529]
[1743450736098,6.52316174,1828.6,1828.1,0.8529]
[1743450736295,5.46937,1828.4,1828.1,0.8529]
[1743450736494,5.07603738,1828.5,1828.1,0.8529]
[1743450736495,10.54509738,1828.5,1828.1,0.8529]
[1743450736727,5.46906,1828.5,1828.1,0.8529]
[1743450737535,5.46869,1828.6,1828.2,0.16913733]
[1743450737896,5.4684,1828.7,1828.2,0.16913733]
[1743450738639,5.46889,1828.6,1828.2,0.16913733]
[1743450738794,5.46845,1828.7,1828.2,0.16913733]
[1743450738997,6.52257074,1828.8,1828.2,5.63884733]
[1743450739197,0.8172,1829.0,1828.4,5.46916]
[1743450739198,6.28486,1829.0,1828.4,5.46916]
[1743450739425,10.9353,1829.0,1828.4,5.46916]
[1743450739738,5.46783,1828.9,1828.5,0.16716128]
[1743450740040,5.4679,1828.9,1828.5,0.8497]
[1743450740240,5.4679,1828.9,1828.6,0.16661018]
[1743450740541,10.93586,1828.9,1828.6,0.16661018]
[1743450740711,5.46808,1828.8,1828.6,0.16661018]
[1743450741420,5.46836,1828.7,1828.6,0.16661018]
[1743450741601,10.54439738,1828.7,1828.6,0.16661018]
[1743450742413,5.46836,1828.7,1828.2,11.0908]
[1743450742616,5.46836,1828.7,1828.6,0.16329309]
[1743450742802,5.46836,1828.7,1828.2,0.8408]
[1743450743008,5.46836,1828.7,1828.6,0.16329309]
[1743450743207,5.46811,1828.8,1828.6,0.16329309]
[1743450743409,5.46837,1828.7,1828.2,6.31043]
[1743450743706,5.07603738,1828.9,1828.2,1.471843]
[1743450744027,5.4687,1828.6,1828.2,0.8408]
[1743450744627,5.46896,1828.5,1828.2,0.8408]
[1743450745001,10.93813,1828.5,1828.2,0.8408]
[1743450745329,5.46943,1828.4,1828.2,0.8408]
[1743450745726,5.46894,1828.6,1828.2,0.8408]
[1743450746225,5.46894,1828.6,1828.3,0.16536099]
[1743450746226,5.46882,1828.6,1828.3,0.16536099]
[1743450746396,10.93693,1828.7,1828.3,0.16536099]
[1743450746602,5.46888,1828.6,1828.3,0.16536099]
[1743450746926,10.93834,1828.5,1828.3,0.16536099]
[1743450747128,10.93828,1828.5,1828.3,0.16536099]
[1743450747328,5.46926,1828.4,1828.3,0.16536099]
[1743450747831,5.46868,1828.6,1828.3,0.16536099]
[1743450748040,10.54439738,1828.7,1828.3,0.16536099]
[1743450748245,10.93692,1828.7,1828.3,0.16536099]
[1743450748546,5.46876,1828.6,1828.3,0.16536099]
[1743450748721,10.93693,1828.7,1828.3,0.16536099]
[1743450748908,10.93633,1828.8,1828.4,0.8909]
[1743450749107,5.46808,1828.8,1828.4,1.05584793]
[1743450749502,10.93633,1828.8,1828.4,1.05584793]
[1743450749842,5.46849,1828.7,1828.4,1.05584793]
[1743450750143,5.46867,1828.6,1828.4,1.05584793]
[1743450750348,5.4681,1828.8,1828.4,1.05584793]
[1743450750633,5.07603738,1828.9,1828.4,1.05584793]
[1743450750634,5.46781,1828.9,1828.4,6.52509793]
[1743450750838,5.46781,1828.9,1828.5,0.65250979]
[1743450751052,10.93574,1828.9,1828.5,0.65250979]
[1743450751231,5.46781,1828.9,1828.6,0.16384567]
[1743450751430,5.4681,1828.8,1828.6,0.16384567]
[1743450751653,10.93634,1828.8,1828.4,0.8909]
[1743450751835,5.46877,1828.6,1828.4,0.8909]
[1743450752918,5.46841,1828.7,1828.4,0.8909]
[1743450753464,10.93629,1828.8,1828.4,0.8909]
[1743450753662,5.46848,1828.7,1828.4,0.8909]
[1743450754157,5.46758,1829.0,1828.4,6.35381485]
[1743450754521,5.46787,1828.9,1828.4,6.35381485]
[1743450754725,10.93524,1829.0,1828.5,0.16384419]
[1743450754928,5.07603738,1829.1,1828.5,0.72713561]
[1743450755236,5.46692,1829.2,1828.6,0.55]
[1743450755452,10.93397,1829.2,1828.6,0.55]
[1743450755756,5.46692,1829.2,1828.7,0.16301826]
[1743450755904,11.2576854,1829.5,1828.7,10.25]
[1743450756109,5.46682,1829.3,1828.8,10.95378768]
[1743450756305,10.93368,1829.3,1828.8,10.95378768]
[1743450756539,5.46674,1829.3,1828.8,16.42177768]
[1743450756931,5.46674,1829.3,1828.9,0.9171]
[1743450757133,5.46696,1829.2,1828.9,0.9171]
[1743450757637,5.46722,1829.1,1828.9,1.48039142]
[1743450757842,5.46643,1829.4,1829.0,0.9171]
[1743450758038,5.466,1829.5,1829.0,0.9171]
[1743450758213,5.46634,1829.4,1829.0,0.9171]
[1743450758616,10.93281,1829.4,1829.0,0.9171]
[1743450758942,5.46716,1829.1,1829.0,0.9171]
[1743450759239,5.46716,1829.1,1828.7,0.9435]
[1743450759240,10.54319738,1829.1,1828.7,0.9435]
[1743450759417,5.46763,1829.0,1828.7,0.9435]
[1743450759736,5.46763,1829.0,1828.8,0.1467786]
[1743450760115,10.93533,1829.0,1828.8,0.1467786]
[1743450760542,5.46763,1829.0,1828.8,0.1467786]
[1743450760741,10.54320738,1829.1,1828.8,0.1467786]
[1743450761041,5.46717,1829.1,1828.8,0.1467786]
[1743450761241,5.46688,1829.2,1828.8,0.1467786]
[1743450762437,10.93394,1829.2,1828.8,0.1467786]
[1743450762642,5.46742,1829.1,1828.8,0.1467786]
[1743450762844,5.46776,1828.9,1828.8,0.1467786]
[1743450763146,5.07603738,1829.0,1828.5,0.9112]
[1743450763311,5.46776,1828.9,1828.8,0.14737504]
[1743450763516,5.46776,1828.9,1828.5,0.9112]
[1743450763517,5.46833,1828.8,1828.5,0.9112]
[1743450763735,10.93662,1828.8,1828.5,0.9112]
[1743450763938,5.46846,1828.7,1828.5,0.9112]
[1743450764146,5.46815,1828.8,1828.5,0.9112]
[1743450764450,11.99010974,1828.9,1828.5,0.9112]
[1743450764616,6.52215974,1828.9,1828.5,0.9112]
[1743450764818,5.46778,1828.9,1828.5,0.9112]
[1743450765145,10.93477,1829.1,1828.5,6.38006]
[1743450765350,5.4677,1829.0,1828.5,11.1612]
[1743450765545,5.4677,1829.0,1828.5,16.63007]
[1743450765746,5.46722,1829.1,1828.5,15.71883]
[1743450766047,5.46705,1829.2,1828.7,0.8766]
[1743450766548,5.46659,1829.3,1828.7,6.34482]
[1743450766747,5.46643,1829.4,1829.0,0.8766]
[1743450766949,5.46607,1829.5,1829.0,0.8766]
[1743450767246,5.46607,1829.5,1829.1,0.14595191]
[1743450767433,5.46573,1829.6,1829.1,0.14595191]
[1743450767640,10.93161,1829.6,1829.1,0.14595191]
[1743450767828,10.93163,1829.6,1829.1,0.14595191]
[1743450768025,5.46573,1829.6,1829.1,0.14595191]
[1743450768229,5.46573,1829.6,1829.1,5.66769714]
[1743450768432,10.93159,1829.6,1829.1,0.14595191]
[1743450768754,5.46606,1829.5,1829.1,0.14595191]
[1743450768943,10.93221,1829.5,1829.1,0.14595191]
[1743450769315,5.46606,1829.5,1829.1,0.14595191]
[1743450770353,5.46518,1829.8,1829.2,16.67472]
[1743450770537,5.51481,1829.9,1829.4,0.958]
[1743450770737,5.46518,1829.8,1829.4,0.958]
[1743450770943,0.05,1829.9,1829.5,0.14058457]
[1743450771249,0.05,1829.9,1829.6,0.9032]
[1743450772544,5.51487,1829.9,1829.6,0.9032]
[1743450772750,5.46524,1829.8,1829.5,0.14058457]
[1743450773059,5.46524,1829.8,1829.4,11.1532]
[1743450773471,5.46567,1829.6,1829.4,11.1532]
[1743450773853,5.46597,1829.5,1829.4,0.9032]
[1743450774076,5.46597,1829.5,1829.4,1.04406006]
[1743450774575,5.46567,1829.6,1829.4,1.04406006]
[1743450775344,5.46597,1829.5,1829.4,0.14086006]
[1743450775662,5.46597,1829.5,1829.2,0.9032]
[1743450775663,5.46641,1829.4,1829.2,0.9032]
[1743450776468,10.54206738,1829.5,1829.2,0.9032]
[1743450776674,16.00831738,1829.5,1829.2,0.9032]
[1743450776886,5.46636,1829.4,1829.2,0.9032]
[1743450777176,1.60084274,1829.4,1829.0,11.1532]
[1743450777369,1.60084274,1829.4,1829.0,0.9032]
[1743450777370,7.06721274,1829.4,1829.0,0.9032]
[1743450777571,12.53374274,1829.4,1829.0,0.9032]
[1743450777773,7.06721274,1829.4,1829.0,0.9032]
[1743450778075,10.54204738,1829.5,1829.0,0.9032]
[1743450778263,10.93285,1829.4,1829.0,0.9032]
[1743450778579,5.4673,1829.1,1828.7,0.9332]
[1743450778774,5.46699,1829.2,1828.7,0.9332]
[1743450778950,10.93407,1829.2,1828.7,0.9332]
[1743450779405,5.46699,1829.2,1828.7,0.9332]
[1743450779544,5.46719,1829.1,1828.7,0.9332]
[1743450779748,11.72152438,1829.2,1828.7,0.9332]
[1743450779962,5.46688,1829.2,1828.7,0.9332]
[1743450780377,5.46703,1829.2,1828.7,0.9332]
[1743450780564,11.78585,1829.3,1828.7,6.40147]
[1743450780785,5.46657,1829.3,1828.7,6.40147]
[1743450781094,10.93336,1829.3,1828.7,6.40147]
[1743450781264,5.46657,1829.3,1828.7,6.40147]
[1743450781785,5.46657,1829.3,1828.7,6.40138]
[1743450782093,5.46708,1829.2,1828.7,0.9332]
[1743450782287,5.07603738,1829.4,1828.7,0.9332]
[1743450782288,5.46659,1829.3,1828.7,0.9332]
[1743450782492,5.46692,1829.2,1828.7,0.9332]
[1743450783196,5.46797,1828.9,1828.7,0.9332]
[1743450783397,5.46797,1828.9,1828.4,0.9061]
[1743450783762,5.46819,1828.8,1828.4,0.9061]
[1743450783970,5.46776,1828.9,1828.4,0.9061]
[1743450784169,5.07603738,1829.0,1828.4,0.9061]
[1743450784496,10.54378738,1829.0,1828.4,0.9061]
[1743450784805,16.01154738,1829.0,1828.4,6.37535]
[1743450784978,5.4679,1828.9,1828.4,0.9061]
[1743450785905,0.9149,1829.3,1828.4,6.43001652]
[1743450786066,5.46706,1829.2,1828.6,0.8984]
[1743450786271,5.99093738,1829.3,1828.6,0.8984]
[1743450786570,5.46708,1829.2,1828.6,0.8984]
[1743450786763,5.46708,1829.2,1828.7,0.8984]
[1743450786968,10.54260738,1829.3,1828.8,0.8984]
[1743450787363,11.47240738,1829.8,1828.9,10.85467449]
[1743450787597,10.54120738,1829.8,1829.2,0.8907]
[1743450787803,10.93101,1829.7,1829.2,0.8907]
[1743450788098,5.46577,1829.6,1829.2,0.8907]
[1743450788277,5.4654,1829.7,1829.2,0.8907]
[1743450788599,5.46568,1829.6,1829.2,0.8907]
[1743450788807,10.93158,1829.6,1829.2,0.8907]
[1743450789005,16.00761738,1829.6,1829.2,0.8907]
[1743450789298,16.00761738,1829.6,1829.0,11.1543]
[1743450789299,5.46666,1829.3,1829.0,11.1543]
[1743450789505,10.54246738,1829.4,1829.0,0.9043]
[1743450789702,10.54181738,1829.6,1829.0,0.9043]
[1743450789902,10.54171738,1829.6,1829.0,0.9043]
[1743450790202,5.07603738,1829.6,1829.0,6.37165]
[1743450790394,5.51481,1829.9,1829.2,0.9171]
[1743450790582,5.46519,1829.8,1829.4,0.9171]
[1743450791103,10.93104,1829.7,1829.4,0.9171]
[1743450791302,5.46597,1829.5,1829.2,10.25]
[1743450791605,10.54173738,1829.6,1829.2,0.8606]
[1743450792206,5.4657,1829.6,1829.2,0.8606]
[1743450792516,5.46517,1829.8,1829.2,6.32732]
[1743450792679,5.51483,1829.9,1829.3,6.971262]
[1743450792885,5.51483,1829.9,1829.4,0.8721]
[1743450793606,5.07603738,1829.8,1829.4,0.8721]
[1743450793810,5.46636,1829.4,1829.2,0.9248]
[1743450794104,5.46597,1829.5,1829.2,0.9248]
[1743450794105,10.93205,1829.5,1829.2,0.9248]
[1743450794281,5.46636,1829.4,1829.2,0.9248]
[1743450794608,10.97985,1829.9,1829.3,6.35002]
[1743450794792,0.05,1829.9,1829.4,6.101232]
[1743450794983,0.05,1829.9,1829.4,11.62206789]
[1743450795182,0.05,1829.9,1829.5,0.8835]
[1743450795780,5.51486,1829.9,1829.5,0.8835]
[1743450795986,0.05,1829.9,1829.5,0.8835]
[1743450796189,5.51487,1829.9,1829.5,0.8835]
[1743450796399,10.97986,1829.9,1829.5,0.8835]
[1743450796598,5.46517,1829.8,1829.5,0.8835]
[1743450796797,10.9798,1829.9,1829.5,0.8835]
[1743450797108,12.58537374,1829.9,1829.5,0.8835]
[1743450797408,5.46539,1829.7,1829.5,0.8835]
[1743450797703,5.46539,1829.7,1829.2,0.9233]
[1743450797904,5.46539,1829.7,1829.2,6.39016]
[1743450798104,10.54113738,1829.8,1829.2,11.85687]
[1743450798305,5.07603738,1829.8,1829.3,5.46647]
[1743450798896,10.54130738,1829.8,1829.2,0.9233]
[1743450799084,5.46549,1829.7,1829.2,6.39016]
[1743450799501,10.93108,1829.7,1829.2,0.9233]
[1743450799699,5.46549,1829.7,1829.2,0.9233]
[1743450800308,5.07603738,1829.8,1829.3,5.46646]
[1743450800501,5.07603738,1829.8,1829.4,0.9233]
[1743450800700,5.51492,1829.9,1829.4,0.9233]
[1743450801509,5.51488,1829.9,1829.4,0.9233]
[1743450801809,5.51491,1829.9,1829.4,0.9233]
[1743450802384,0.05,1829.9,1829.4,0.9233]
[1743450802590,0.05,1829.9,1829.5,6.34155]
[1743450802789,0.05,1829.9,1829.6,0.634155]
[1743450803385,0.05,1829.9,1829.5,6.34164]
[1743450803585,0.05,1829.9,1829.5,0.8757]
[1743450803798,0.05,1829.9,1829.5,6.34166]
[1743450803985,0.05,1829.9,1829.5,0.8757]
[1743450804381,0.05,1829.9,1829.6,0.55]
[1743450804611,0.05,1829.9,1829.8,0.8757]
[1743450805934,0.05,1829.9,1829.6,0.8757]
[1743450807513,0.05,1829.9,1829.6,0.93034987]
[1743450807915,0.05,1829.9,1829.8,1.4257]
[1743450808215,0.05,1829.9,1829.8,6.89077]
[1743450808805,0.05,1829.9,1829.8,1.4257]
[1743450809228,0.05,1829.9,1829.8,0.8757]
[1743450809921,0.05,1829.9,1829.6,11.1366]
[1743450810122,0.05,1829.9,1829.3,3.0]
[1743450810123,10.54114738,1829.8,1829.3,3.8866]
[1743450810415,5.46564,1829.7,1829.3,0.8866]
[1743450810607,11.43775738,1829.8,1829.3,0.8866]
[1743450810805,5.97263738,1829.8,1829.3,6.35305]
[1743450811009,5.5148,1829.9,1829.4,0.55]
[1743450811207,5.51504,1829.9,1829.4,1.240305]
[1743450811606,5.4651,1829.8,1829.4,0.690305]
[1743450811812,5.4651,1829.8,1829.3,0.8866]
[1743450812200,5.46548,1829.7,1829.3,0.8866]
[1743450812822,5.46584,1829.6,1829.3,0.8866]
[1743450813199,5.46598,1829.5,1829.0,0.8901]
[1743450813401,10.54246738,1829.4,1829.0,1.525885]
[1743450813606,10.54246738,1829.4,1829.0,0.8901]
[1743450813804,11.44620738,1829.6,1829.0,6.35755]
[1743450814126,5.46566,1829.7,1829.2,0.55]
[1743450814437,17.09875738,1829.8,1829.2,6.01676]
[1743450814619,5.98563738,1829.8,1829.3,0.9076]
[1743450814814,11.45081738,1829.8,1829.3,0.9076]
[1743450815017,11.45081738,1829.8,1829.3,1.600037]
[1743450815319,5.4654,1829.7,1829.3,1.600037]
[1743450815498,5.4654,1829.7,1829.3,0.9076]
[1743450816627,5.46584,1829.6,1829.3,0.9076]
[1743450817007,5.46598,1829.5,1829.1,11.1336]
[1743450817995,5.07603738,1829.4,1829.1,11.1336]
[1743450818200,5.07603738,1829.4,1829.1,0.8836]
[1743450819023,5.87688063,1829.6,1829.1,0.8836]
[1743450819225,10.93163,1829.6,1829.1,0.8836]
[1743450819442,12.53239674,1829.6,1829.1,0.8836]
[1743450819729,1.60076674,1829.6,1829.1,0.8836]
[1743450819925,5.46582,1829.6,1829.1,0.8836]
[1743450820429,10.54144738,1829.7,1829.2,0.55]
[1743450820617,16.00703738,1829.7,1829.2,0.55]
[1743450820818,10.54144738,1829.7,1829.2,0.55]
[1743450820994,5.46581,1829.6,1829.2,0.55]
[1743450821199,10.54142738,1829.7,1829.2,0.55]
[1743450821400,10.54142738,1829.7,1829.2,1.240067]
[1743450821898,0.05,1829.9,1829.5,5.46586]
[1743450822122,0.05,1829.9,1829.7,0.8624]
[1743450825631,0.05,1829.9,1829.8,0.05464775]
[1743450825942,0.05,1829.9,1829.7,6.32766]
[1743450826100,0.05,1829.9,1829.8,0.5770121]
[1743450826428,0.05,1829.9,1829.7,0.8624]
[1743450827228,0.05,1829.9,1829.5,0.8745]
[1743450827406,5.51484,1829.9,1829.5,0.8745]
[1743450827607,5.51484,1829.9,1828.9,5.46747]
[1743450827608,0.8762,1829.8,1829.2,11.1245]
[1743450827825,5.46586,1829.6,1829.2,0.8745]
[1743450828216,5.07603738,1829.7,1829.2,0.8745]
[1743450828417,5.46511,1829.8,1829.3,0.55]
[1743450829481,10.93107,1829.7,1829.3,0.55]
[1743450829919,5.46551,1829.7,1829.3,0.55]
[1743450830101,10.54120738,1829.8,1829.3,0.55]
[1743450830301,10.59086738,1829.9,1829.3,6.705415]
[1743450830525,5.51483,1829.9,1829.3,6.76007199]
[1743450830735,10.97982,1829.9,1829.3,6.705415]
[1743450830932,5.51483,1829.9,1829.3,6.76007199]
[1743450831104,10.97981,1829.9,1829.3,6.705415]
[1743450831305,10.97981,1829.9,1829.4,0.5779441]
[1743450831507,5.51483,1829.9,1829.4,0.5779441]
[1743450831712,10.97985,1829.9,1829.4,0.5779441]
[1743450832032,5.46509,1829.8,1829.4,0.5779441]
[1743450832233,0.05,1829.9,1829.5,6.95765699]
[1743450832441,0.05,1829.9,1829.7,5.46523]
[1743450832737,0.05,1829.9,1829.8,0.8872]
[1743450833518,0.05,1829.9,1829.7,0.8595]
[1743450835723,5.51492,1829.9,1829.8,0.13790759]
[1743450835947,0.05,1829.9,1829.5,1.3843]
[1743450836140,0.05,1829.9,1829.6,0.13846079]
[1743450837529,5.46537,1829.7,1829.6,0.13846079]
[1743450837853,4.59793025,1829.7,1829.3,15.71648]
[1743450838143,4.59793025,1829.7,1829.3,10.25]
[1743450838548,4.59793025,1829.7,1829.5,0.8917]
[1743450839554,4.59793025,1829.7,1829.4,0.55]
[1743450839858,4.59793025,1829.5,1829.3,11.0947]
[1743450840153,4.59793025,1829.5,1829.1,0.8208]
[1743450840355,10.06395025,1829.5,1829.1,0.8208]
[1743450840522,4.59793025,1829.3,1828.9,0.8208]
[1743450841830,16.02776375,1829.4,1828.9,0.8208]
[1743450842029,16.02776375,1829.4,1828.9,1.44967]
[1743450842228,5.09488375,1829.4,1828.9,1.44967]
[1743450842450,10.56118375,1829.4,1828.9,1.44967]
[1743450842652,0.8817,1829.5,1829.0,6.01732]
[1743450842822,5.09488375,1829.6,1829.0,6.07212983]
[1743450843021,0.8399,1829.7,1829.3,0.8416]
[1743450843228,10.56007375,1829.8,1829.3,0.8416]
[1743450843740,5.46545,1829.7,1829.3,0.8416]
[1743450844055,10.56007375,1829.8,1829.3,0.8416]
[1743450844636,0.05,1829.9,1829.4,11.48233]
[1743450844859,0.05,1829.9,1829.6,0.55]
[1743450845056,0.05,1829.9,1829.6,1.3916]
[1743450845356,0.05,1829.9,1829.6,0.8416]
[1743450846731,0.05,1829.9,1829.7,0.55]
[1743450847063,0.05,1829.9,1829.7,1.235701]
[1743450848049,0.05,1829.9,1829.8,6.06971737]
[1743450848262,0.05,1829.9,1829.8,17.16577]
[1743450848463,0.05,1829.9,1829.8,20.16577]
[1743450850461,0.05,1829.9,1829.8,11.1507]
[1743450850638,0.05,1829.9,1829.8,17.1971481]
[1743450850838,0.05,1829.9,1829.8,17.7471481]
[1743450851651,0.05,1829.9,1829.8,20.7471481]
[1743450853449,0.05,1829.9,1829.8,17.7471481]
[1743450854844,0.05,1829.9,1829.8,20.7471481]
[1743450855871,0.05,1829.9,1829.8,25.7471481]
[1743450856076,0.05,1829.9,1829.8,19.7027]
[1743450856260,0.05,1829.9,1829.8,13.25]
[1743450856578,0.05,1829.9,1829.8,10.25]
[1743450857070,0.05,1829.9,1829.6,37.89651]
[1743450857254,0.05,1829.9,1829.7,5.46535]
[1743450857569,0.05,1829.9,1829.7,5.51999808]
[1743450857776,0.05,1829.9,1829.8,6.01507]
[1743450858074,0.05,1829.9,1829.8,17.16567]
[1743450858272,0.05,1829.9,1829.8,20.16567]
[1743450858643,1e-05,1829.9,1829.8,20.16567]
[1743450858867,5.14488375,1830.9,1830.5,5.46294]
[1743450859061,5.14488375,1830.9,1830.5,11.564234]
[1743450859273,5.14488375,1830.9,1830.5,17.027054]
[1743450859465,5.14488375,1830.9,1830.6,5.46259]
[1743450859690,0.05,1830.9,1830.6,6.01268]
[1743450861693,0.05,1830.9,1830.6,6.01251]
[1743450862194,0.05,1830.9,1830.7,5.46224]
[1743450862747,0.05,1830.9,1830.8,0.55]
[1743450863169,0.05,1830.9,1830.8,6.01209]
[1743450863568,0.05,1830.9,1830.8,0.55]
[1743450863842,0.05,1830.9,1830.8,6.01209]
[1743450864270,0.05,1830.9,1830.8,6.06670469]
[1743450864492,0.05,1830.9,1830.8,6.84149]
[1743450864671,0.05,1830.9,1830.8,20.09149]
[1743450865376,1e-05,1830.9,1830.8,20.09149]
[1743450865554,0.8427,1831.8,1831.4,6.30494]
[1743450865760,0.8427,1831.8,1831.6,0.55]
[1743450866168,0.05,1831.9,1831.6,0.55]
[1743450867451,0.05,1831.9,1831.6,11.46917]
[1743450867647,0.05,1831.9,1831.8,0.55]
[1743450868367,0.05,1831.9,1831.8,6.00911]
[1743450868579,0.05,1831.9,1831.8,1.4235]
[1743450869655,0.05,1831.9,1831.8,6.88261]
[1743450869854,0.05,1831.9,1831.8,17.13261]
[1743450870492,0.05,1831.9,1831.8,20.13261]
[1743450872094,0.05,1831.9,1831.8,25.65361]
[1743450873357,0.05,1831.9,1831.8,20.13261]
[1743450873562,0.05,1831.9,1831.8,25.64961]
[1743450874208,0.05,1831.9,1831.8,20.13261]
[1743450874509,0.05,1831.9,1831.8,25.65061]
[1743450874892,0.05,1831.9,1831.8,20.13261]
[1743450875074,0.05,1831.9,1831.6,5.45969]
[1743450875270,0.05,1831.9,1831.8,10.97411]
[1743450875474,0.05,1831.9,1831.8,5.515]
[1743450875999,0.05,1831.9,1831.8,11.02869232]
[1743450876163,0.05,1831.9,1831.8,5.515]
[1743450876994,0.05,1831.9,1831.8,6.065]
[1743450878091,0.05,1831.9,1831.8,6.11958264]
[1743450878259,0.05,1831.9,1831.8,11.52411]
[1743450880274,0.8165,1832.5,1832.2,5.45791]
[1743450880474,0.05,1832.9,1832.8,5.45613]
[1743450880674,0.05,1832.9,1832.8,6.12455834]
[1743450880873,0.05,1832.9,1832.8,5.52]
[1743450881274,0.05,1832.9,1832.8,6.07]
[1743450881482,0.05,1832.9,1832.8,11.52613]
[1743450881681,0.05,1832.9,1832.8,6.077]
[1743450883777,0.05,1832.9,1832.8,11.53313]
[1743450883977,0.05,1832.9,1832.8,6.077]
[1743450884699,0.05,1832.9,1832.8,11.53313]
[1743450886676,0.05,1832.9,1832.8,21.78313]
[1743450887015,0.05,1832.9,1832.8,22.61353]
[1743450887175,0.1087401,1833.6,1833.5,5.45404]
[1743450887376,0.1087401,1833.6,1833.5,11.51904]
[1743450888406,0.1087401,1833.6,1833.5,22.62134]
[1743450888780,0.1087401,1833.6,1833.5,17.10634]
[1743450888977,0.1087401,1833.6,1833.5,22.63634]
[1743450889377,0.1087401,1833.6,1833.5,17.10634]
[1743450889582,0.1087401,1833.6,1833.5,22.63734]
[1743450889907,0.1087401,1833.6,1833.5,12.38734]
[1743450890332,0.05,1833.9,1833.8,5.45315]
[1743450890513,0.8412,1835.0,1833.9,0.8617]
[1743450890677,0.8412,1835.0,1834.3,5.45148]
[1743450890678,11.38585375,1835.0,1834.3,5.45148]
[1743450890881,8.49992,1834.9,1834.3,15.70148]
[1743450891123,0.8853,1834.8,1834.4,5.569]
[1743450891288,0.05,1834.9,1834.6,5.45077]
[1743450891487,0.05,1834.9,1834.7,0.05449896]
[1743450891822,0.02273,1834.9,1834.8,5.576]
[1743450893107,0.02273,1834.9,1834.8,5.63049658]
[1743450893320,0.02273,1834.9,1834.8,5.576]
[1743450893879,0.02273,1834.9,1834.8,5.6304939]
[1743450894096,0.02273,1834.9,1834.8,11.02618]
[1743450894293,0.02273,1834.9,1834.8,5.576]
[1743450894491,0.02273,1834.9,1834.8,5.606]
[1743450896517,3.02273,1834.9,1834.6,5.623]
[1743450896813,0.02273,1834.9,1834.6,5.623]
[1743450897185,0.02273,1834.9,1834.6,11.07368]
[1743450897414,0.02273,1834.9,1834.7,10.8]
[1743450897602,0.02273,1834.9,1834.8,5.45018]
[1743450897782,0.02273,1834.9,1834.7,16.25032]
[1743450898313,0.02273,1834.9,1834.7,21.70068]
[1743450898626,0.02273,1834.9,1834.8,15.70018]
[1743450899284,0.02273,1834.9,1834.8,10.25]
[1743450899486,0.02273,1834.9,1834.7,16.25028]
[1743450899797,0.02273,1834.9,1834.7,10.8]
[1743450900214,0.02273,1834.9,1834.3,10.25]
[1743450900417,5.09488375,1834.8,1834.2,0.8156]
[1743450900625,0.8578,1834.6,1834.1,5.45224]
[1743450900840,0.8578,1834.6,1834.1,5.452]
[1743450901045,0.8578,1834.6,1833.9,6.27992]
[1743450901351,3.0,1834.2,1834.0,5.671]
[1743450901508,3.0,1834.2,1834.0,5.673]
[1743450902898,3.0,1834.0,1833.6,10.25]
[1743450903140,3.0,1834.0,1833.7,5.663]
[1743450904047,3.0,1833.8,1833.5,5.45403]
[1743450904340,3.0,1833.8,1833.6,5.661]